Cogmind - Beta 13 @@@ ROGUE MODE // 2024.05.22 @ 21:17:48 Player: KingCain Result: Destroyed by S-10 Pest with Light Assault Rifle Performance ------------- Evolutions (2) 1000 Regions Visited (5) 1000 Robots Destroyed (42) 210 Value Destroyed (681) 681 Prototype IDs (0) 0 Alien Tech Used (0) 0 Bonus (235) 235 TOTAL SCORE: 3126 Bonus ------- High Alert Combat Kills 35 Entered Garrisons 200 Cogmind --------- Core Integrity 0/550 Matter 236/300 Energy 47/100 System Corruption 0% Temperature Cool (0) Movement Walking (90) Location -8/Garrison Parts ------- > --- POWER (1) -------- (None) > --- PROPULSION (6) --- VSS Leg VSS Leg > --- UTILITY (2) ------ (None) > --- WEAPON (2) ------- (None) > --- INVENTORY (5) ---- VSS Leg VSS Leg Flight Unit Flight Unit Peak State ------------ > --- POWER ------------ Improved Ion Engine > --- PROPULSION ------- VSS Leg VSS Leg VSS Leg VSS Leg > --- UTILITY ---------- Reaction Control System > --- WEAPON ----------- Light Assault Rifle > --- INVENTORY -------- Flight Unit Flight Unit [Rating: 18] Favorites ----------- Power Light Ion Engine Engine Light Ion Engine Propulsion Flight Unit Leg VSS Leg Wheel Wheel Flight Unit Flight Unit Utility Small Storage Unit Device Tractor Beam Storage Small Storage Unit Processor Improved Targeting Computer Protection Propulsion Shielding Weapon Light Assault Rifle Energy Gun Small Laser Ballistic Gun Light Assault Rifle Launcher Grenade Launcher Build | -11 -10 -9 -9 -8 -8 ------- Run | Yrd Mat Mat Min Mat Gar Slots Evolved 4 | . . 2 . 2 . Power . | . . . . . . Propulsion 4 | . . 2 . 2 . Utility . | . . . . . . Weapon . | . . . . . . Parts Attached 36 | 7 2 5 7 8 7 Power 5 | 1 1 2 1 . . Engine 5 | 1 1 2 1 . . Core . | . . . . . . Reactor . | . . . . . . Propulsion 16 | 2 . 3 3 2 6 Treads . | . . . . . . Leg 6 | . . . . . 6 Wheel 2 | 2 . . . . . Hover . | . . . . . . Flight 8 | . . 3 3 2 . Utility 10 | 2 . . 2 5 1 Device 7 | 1 . . . 5 1 Storage 1 | 1 . . . . . Processor 1 | . . . 1 . . Hackware . | . . . . . . Protection 1 | . . . 1 . . Artifact . | . . . . . . Weapon 5 | 2 1 . 1 1 . Energy Gun 1 | 1 . . . . . Energy Cannon . | . . . . . . Ballistic Gun 2 | 1 . . 1 . . Ballistic Cannon . | . . . . . . Launcher 2 | . 1 . . 1 . Special Weapon . | . . . . . . Impact Weapon . | . . . . . . Slashing Weapon . | . . . . . . Piercing Weapon . | . . . . . . Special Melee Weapon . | . . . . . . Unidentified Prototypes . | . . . . . . Parts Lost 13 | . 2 . . 8 3 Power 2 | . 1 . . . 1 Propulsion 4 | . . . . 4 . Utility 5 | . 1 . . 3 1 Weapon 2 | . . . . 1 1 Highest Loss Streak 7 | . 2 . . 7 3 To Critical Strikes . | . . . . . . Average Slot Usage (%) 82 | . 92 70 88 82 37 Engine 11 | . 13 11 11 9 6 Leg 2 | . . . . . 20 Wheel 11 | . 28 . . . . Flight 19 | . . 26 43 42 . Device 5 | . 7 . . 11 6 Storage 8 | . 14 11 9 . . Protection 1 | . . . 1 4 . Energy Gun 3 | . 8 . . . . Ballistic Gun 11 | . 14 11 11 9 5 Launcher 6 | . 5 11 11 6 . Naked Turns . | . . . . . . Heaviest Build 16 | 11 12 16 16 13 9 Greatest Support 48 | 26 26 12 16 24 48 Greatest Overweight (x) 1 | . . 1 . 1 . Average Overweight (x) . | . . . . . . Largest Inventory Capacity 8 | 8 8 8 8 5 5 Average Capacity 7 | 6 8 8 7 5 5 Most Carried 8 | 5 8 6 7 5 5 Average Carried 5 | 3 6 3 5 4 3 Final Capacity 8 | 8 8 8 5 5 5 Final Carried 6 | 5 6 3 4 5 4 Class Distribution -------------------- 60% | Mutant 31% | Scavenger-Sprinter 7% | Scavenger-Mutant Dominant Class ---------------- Mutant | -10/Materials Scavenger-Mutant | -9/Materials Scavenger-Sprinter | -9/Mines Scavenger-Sprinter | -8/Materials Mutant | -8/Garrison Resources | -11 -10 -9 -9 -8 -8 ----------- Run | Yrd Mat Mat Min Mat Gar Matter Collected 727 | 285 64 6 275 87 10 Remotely 131 | 115 16 . . . . Salvage Created 943 | 161 441 6 271 64 . Parts 72 | 15 25 3 18 11 . Haulers Intercepted . | . . . . . . Recyclers Shooed 1 | . 1 . . . . Parts Field Recycled . | . . . . . . Retrieved Matter . | . . . . . . Parts Self-Destructed . | . . . . . . Prevented . | . . . . . . Kills | -11 -10 -9 -9 -8 -8 ------- Run | Yrd Mat Mat Min Mat Gar Combat Hostiles Destroyed 26 | . 8 . 12 6 . Guns 4 | . 3 . 1 . . AOE 22 | . 5 . 11 6 . Classes Destroyed 8 | 3 3 . 1 1 . Worker 2 | 2 . . . . . Tunneler 3 | 3 . . . . . Recycler 7 | 1 4 . 2 . . Mechanic 1 | . . . 1 . . Watcher 3 | . 1 1 . 1 . Swarmer 15 | . 3 . 8 4 . Cutter 2 | . . . . 2 . Grunt 9 | . 5 . 4 . . Best Kill Streak 5 | 3 4 1 5 5 . Combat Bots Only 4 | . 3 . 4 4 . Max Kills in Single Turn 4 | 1 2 1 3 4 . Gunslinging 1 | . 1 . . . . Exploded 3 | . 1 . 3 3 . Melee . | . . . . . . Uniques/NPCs Destroyed . | . . . . . . Combat | -11 -10 -9 -9 -8 -8 -------- Run | Yrd Mat Mat Min Mat Gar Hostile Shots Fired 242 | . 33 6 21 54 128 Missed 113 | . 13 4 11 31 54 Damage Taken 1539 | . 261 31 123 385 739 Core 648 | . 46 . 49 127 426 Absorbed by Shields . | . . . . . . Redirected to Shielding 15 | . . . . 15 . Core Remaining (%) 89 | 100 81 . 87 . . Volleys Fired 66 | 15 25 1 13 12 . Largest 2 | 2 2 2 2 2 . Hottest 60 | 60 60 50 50 50 . Shots Fired 119 | 30 49 2 21 17 . Gun 97 | 30 41 1 13 12 . Cannon . | . . . . . . Launcher 22 | . 8 1 8 5 . Special . | . . . . . . Kinetic 66 | 15 25 1 13 12 . Thermal 31 | 15 16 . . . . Explosive 22 | . 8 1 8 5 . Electromagnetic . | . . . . . . Robot Hit Streak 6 | 4 6 1 5 3 . Robot Miss Streak 4 | 2 4 1 2 3 . Penetration Max . | . . . . . . Secondary Targets 1 | . 1 . . . . Max Gunslinging Chain 1 | . 1 . . . . Shots Hit Robots 65 | 17 27 1 13 7 . Core Hits 72 | 7 28 1 24 12 . Critical Kills . | . . . . . . Critical Parts Destroyed . | . . . . . . Critical Strikes . | . . . . . . Melee Attacks . | . . . . . . Impact . | . . . . . . Slashing . | . . . . . . Piercing . | . . . . . . Sneak Attacks . | . . . . . . Combat Hostiles . | . . . . . . Follow-up Attacks . | . . . . . . Damage Inflicted 2396 | 163 691 47 1035 460 . Guns 471 | 163 199 . 59 50 . Cannons . | . . . . . . Explosions 1918 | . 485 47 976 410 . Melee . | . . . . . . Ramming 7 | . 7 . . . . Kinetic 295 | 54 132 . 59 50 . Thermal 218 | 109 67 . 42 . . Explosive 1876 | . 485 47 934 410 . Electromagnetic . | . . . . . . Impact . | . . . . . . Slashing . | . . . . . . Piercing . | . . . . . . Highest Corruption . | . . . . . . Average Corruption . | . . . . . . Corruption Purged . | . . . . . . Corruption Blocked . | . . . . . . Overload Shots . | . . . . . . Overflow Damage 40 | . . . 24 16 . Projectiles . | . . . . . . Explosions 40 | . . . 24 16 . Melee . | . . . . . . Knockbacks . | . . . . . . Impact . | . . . . . . Kinetic . | . . . . . . Secondary . | . . . . . . Self-Inflicted Damage 54 | . 25 . 16 13 . Shots 5 | . 3 . 1 1 . Rammed 2 | . 2 . . . . Targets Rammed 2 | . 2 . . . . Kicked . | . . . . . . Crushed . | . . . . . . Highest Temperature 60 | 60 49 16 55 33 . Average Temperature 20 | 27 19 13 28 11 . Received Heat Transfer 375 | . 132 9 45 117 72 Siege Activations . | . . . . . . Robots Corrupted . | . . . . . . Combat Hostiles . | . . . . . . Parts Fried . | . . . . . . Impact Corruptions . | . . . . . . Robots Melted . | . . . . . . Combat Hostiles . | . . . . . . Parts Melted . | . . . . . . Heat Transferred 450 | 250 150 . 50 . . Parts Sabotaged . | . . . . . . Parts Stolen . | . . . . . . Parts Stripped . | . . . . . . Power Chain Reactions . | . . . . . . Alert | -11 -10 -9 -9 -8 -8 ------- Run | Yrd Mat Mat Min Mat Gar Peak Influence 568 | 30 293 197 502 568 371 Initial 336 | . 19 123 76 195 336 Average 191 | 9 105 134 289 362 348 Maximum Alert Level 2 | . 1 . 2 2 1 Low Security (%) 67 | 100 91 100 51 30 . Level 1 21 | . 8 . 26 18 100 Level 2 11 | . . . 22 50 . Level 3 . | . . . . . . Level 4 . | . . . . . . Level 5 . | . . . . . . High Security . | . . . . . . Max Security . | . . . . . . Squads Dispatched 9 | . 2 . 1 6 . Investigation 2 | . . . . 2 . Extermination . | . . . . . . Reinforcement 5 | . 2 . . 3 . Assault 1 | . . . 1 . . Garrison 1 | . . . . 1 . Intercept . | . . . . . . Searches Triggered . | . . . . . . Construction Impeded . | . . . . . . Haulers Reinforced . | . . . . . . Active Scanning Responses . | . . . . . . Cargo Convoy Interrupts . | . . . . . . Stealth | -11 -10 -9 -9 -8 -8 --------- Run | Yrd Mat Mat Min Mat Gar Distress Signals 3 | . 1 1 . 1 . Communications Jammed . | . . . . . . Distress Signals . | . . . . . . Times Spotted 65 | . 13 3 7 31 11 Peak Tracking Total 17 | . 4 7 4 17 12 Tactical Retreats 4 | . . 1 . 2 1 Traps | -11 -10 -9 -9 -8 -8 ------- Run | Yrd Mat Mat Min Mat Gar Traps Triggered 2 | . . . . 2 . Indirectly . | . . . . . . Trap Hack Attempts . | . . . . . . Triggered . | . . . . . . Disarmed . | . . . . . . Reprogrammed . | . . . . . . Reused . | . . . . . . Traps Extracted . | . . . . . . Installed . | . . . . . . Triggered . | . . . . . . Machines | -11 -10 -9 -9 -8 -8 ---------- Run | Yrd Mat Mat Min Mat Gar Machines Disabled 3 | . 1 . 2 . . Max in Single Turn 1 | . 1 . 1 . . Machines Repaired . | . . . . . . Machines Dismantled . | . . . . . . Machines Sabotaged . | . . . . . . Overloaded Fab Kills . | . . . . . . Hacking | -11 -10 -9 -9 -8 -8 --------- Run | Yrd Mat Mat Min Mat Gar Machines Accessed 1 | . . . . 1 . Terminals . | . . . . . . Fabricators . | . . . . . . Repair Stations . | . . . . . . Recycling Units . | . . . . . . Scanalyzers . | . . . . . . Garrison Access 1 | . . . . 1 . Total Hacks 1 | . . . . 1 . Successful 1 | . . . . 1 . Failed . | . . . . . . Catastrophic . | . . . . . . Database Lockouts . | . . . . . . Manual . | . . . . . . Terminals . | . . . . . . Fabricators . | . . . . . . Repair Stations . | . . . . . . Recycling Units . | . . . . . . Scanalyzers . | . . . . . . Garrison Access 1 | . . . . 1 . Terminal Hacks . | . . . . . . Fabricator Hacks . | . . . . . . Repair Station Hacks . | . . . . . . Recycling Unit Hacks . | . . . . . . Scanalyzer . | . . . . . . Garrison Access Hacks 1 | . . . . 1 . Unlock Access 1 | . . . . 1 . Unauthorized Hacks . | . . . . . . Terminals . | . . . . . . Fabricators . | . . . . . . Repair Stations . | . . . . . . Recycling Units . | . . . . . . Scanalyzers . | . . . . . . Garrison Access . | . . . . . . Data Cores Recovered . | . . . . . . Used . | . . . . . . Hacking Detections 1 | . . . . 1 . Full Trace Events . | . . . . . . Feedback Events . | . . . . . . Feedback Blocked . | . . . . . . Robot Schematics Acquired . | . . . . . . Robots Built . | . . . . . . Authchips . | . . . . . . Time . | . . . . . . Total Robot Build Rating . | . . . . . . Part Schematics Acquired . | . . . . . . Parts Built . | . . . . . . Authchips . | . . . . . . Time . | . . . . . . Total Part Build Rating . | . . . . . . Parts Repaired . | . . . . . . Time . | . . . . . . Parts Recycled . | . . . . . . Recycled Matter . | . . . . . . Retrieved Matter . | . . . . . . Retrieved Components . | . . . . . . Parts Scanalyzed . | . . . . . . Part Schematics Acquired . | . . . . . . Parts Damaged . | . . . . . . Bothacking | -11 -10 -9 -9 -8 -8 ------------ Run | Yrd Mat Mat Min Mat Gar Used RIF Installer . | . . . . . . Robots Hacked . | . . . . . . Non-combat . | . . . . . . Combat . | . . . . . . Robot Hacks Applied . | . . . . . . Relay Couplers Released . | . . . . . . Fabnet Peak Effective % . | . . . . . . Robots Rewired . | . . . . . . Allies Hacked . | . . . . . . Hacks Repelled . | . . . . . . Allies | -11 -10 -9 -9 -8 -8 -------- Run | Yrd Mat Mat Min Mat Gar Total Allies 1 | . . . 1 . . Largest Group 1 | . . . 1 . . Highest-Rated Group 31 | . . . 31 . . Highest-Rated Ally 31 | . . . 31 . . Total Orders . | . . . . . . Ally Attacks 7 | . . . 7 . . Total Damage 63 | . . . 63 . . Kills 2 | . . . 2 . . Allies Corrupted . | . . . . . . Allies Melted . | . . . . . . Intel | -11 -10 -9 -9 -8 -8 ------- Run | Yrd Mat Mat Min Mat Gar Robot Analysis Total . | . . . . . . Derelict Logs Recovered 2 | . . . 2 . . Drone Launches . | . . . . . . Drone Recoveries . | . . . . . . Exploration | -11 -10 -9 -9 -8 -8 ------------- Run | Yrd Mat Mat Min Mat Gar Turns Passed 955 | 142 335 45 208 132 93 Spaces Moved 1319 | 101 282 99 458 301 78 Core 13 | 13 . . . . . Treads . | . . . . . . Legs 78 | . . . . . 78 Wheels 370 | 88 282 . . . . Hover . | . . . . . . Flight 858 | . . 99 458 301 . Fastest Speed 25 | 50 90 34 31 25 90 Average Speed 51 | 84 90 34 31 28 90 Slowest Speed 117 | 90 90 114 34 117 90 Overloaded Moves . | . . . . . . Propulsion Burnouts . | . . . . . . Robots Hopped 6 | . . . 1 5 . Cave-ins Triggered . | . . . . . . Exploration Rate (%) 32 | 5 48 11 70 31 27 Regions Visited 5 Branch Regions 1 Pre-discovered Areas 1 | . . . 1 . . Known Exits Taken 1 | . . . . 1 . Unknown Exits Taken 4 | 1 1 1 1 . . Scrap Searched 1 | . . . 1 . . Spaces Dug . | . . . . . . Terrain Destroyed 141 | . 36 7 67 31 . Melee . | . . . . . . Projectile . | . . . . . . AOE 141 | . 36 7 67 31 . Terrain Rammed . | . . . . . . Walls Destroyed . | . . . . . . Machines Disabled . | . . . . . . Actions | -11 -10 -9 -9 -8 -8 --------- Run | Yrd Mat Mat Min Mat Gar Total 1485 | 127 320 107 505 324 102 Wait 28 | . . . 15 . 13 Move 1304 | 100 281 98 455 292 78 Hop 4 | . . . 1 3 . Pick Up 21 | 5 5 . 6 5 . Fast Attach 18 | 7 2 . 3 6 . Attach 12 | . . 3 2 2 5 Detach 5 | . . . 1 . 4 Swap 6 | . . 2 2 . 2 Drop 19 | . 5 3 7 4 . Fire 66 | 15 25 1 13 12 . Melee . | . . . . . . Ram 2 | . 2 . . . . Kick . | . . . . . . Crush . | . . . . . . Escape Stasis . | . . . . . . Rewire . | . . . . . . Trap . | . . . . . . Miscellaneous . | . . . . . . Route ------- -11/Scrapyard -10/Materials -9/Materials -9/Mines -8/Materials -8/Garrison History --------- Turn | Location | Event 5 | -11/Scrapyard | Discovered new exit (range 16) 143 | -11/Scrapyard | Entered Materials 327 | -10/Materials | Build established: Mutant 442 | -10/Materials | Discovered new exit (range 8) 478 | -10/Materials | Entered another Materials area 478 | -9/Materials | Evolved 2 slots: Propulsion x2 519 | -9/Materials | Discovered new exit (range 11) 523 | -9/Materials | Entered Mines 627 | -9/Mines | Learned location of Recycling (-8) 628 | -9/Mines | Learned Materials emergency access door positions 646 | -9/Mines | Met a Derelict testing a Signal Generator 647 | -9/Mines | Found Signal Generator 700 | -9/Mines | Joined a pair of Derelicts in attacking an 0b10 outpost 720 | -9/Mines | Discovered new exit (range 13) 731 | -9/Mines | Entered Materials 731 | -8/Materials | Evolved 2 slots: Propulsion x2 784 | -8/Materials | Garrison activated, responded to threat 862 | -8/Materials | Identified exit to Garrison 863 | -8/Materials | Entered Garrison 884 | -8/Garrison | Lost 7 parts (3n3u1w) 909 | -8/Garrison | Triggered checkpoint 909 | -8/Garrison | Triggered checkpoint 913 | -8/Garrison | Triggered checkpoint 933 | -8/Garrison | Core integrity fell below 50% 952 | -8/Garrison | Core integrity fell below 20% 956 | -8/Garrison | Destroyed by S-10 Pest with Light Assault Rifle Last Messages --------------- 00862_ Connecting with Garrison Access... 00862_ Current location identified: Materials >>Unlock Access door unlocked. 00862_ EXIT=UNLOCKED: GARRISON 00862_ Connecting with Garrison Access... LOCATION=GARRISON GOAL=ESCAPE 00909_ Beams of light sweep through the air. An alarm sounds. 00914_ Lgt. Assault Rifle destroyed. 00918_ Penetrated by Slug. 00920_ S-10 Pest destroyed. 00927_ Reaction Control System destroyed. 00927_ S-10 Pest destroyed. 00929_ Imp. Ion Engine destroyed. 00943_ S-10 Pest destroyed. 00943_ Penetrated by Slug. 00947_ Acquired 10 matter. 00951_ S-10 Pest destroyed. 00954_ Critical hit (Burn: +37). Map ----- +----------------------------------------------------+ | ?????????????????????????????????????????????????? | | ?????????????????????????????????????????????????? | | ?????????????????????????????????????????????????? | | ?????????????????????????????????????????????????? | | ?????????????????????????????????????????????????? | | ?????????????????????????????????????????????????? | | ?????????????????????????????????????????????????? | | ?????????????????????????????????????????????????? | | ?????????????????????????????????????????????????? | | ?????????????????????????????????????????????????? | | ???????????????????????###???????????????????????? | | ??????????????????????? ???????????????????????? | | ??????????????????????? ???????????????????????? | | ???????????????????????# #??????????????????????? | | ???????????????????????# #??????????????????????? | | ???????????????????????# #??????????????????????? | | ??????????????????????? #??????????????????????? | | ???????????????????????# #??????????????????????? | | ???????????????????????# #??????????????????????? | | ???????????????????##### ###########????????????? | | ???????????????????? #????????????? | | ???????????????????????# #????????????? | | ???????????????????????# s######## #????????????? | | ???????????????????????# #??????# #????????????? | | ???????????????????????# *#??????# #????????????? | | ???????????????????????#=@#??????# #????????????? | | ???????????????????????#shY ?????# #???????? #??? | | ???????????????????????# ## #???# #?#####?? #??? | | ???????????????????????#s #??#???# #? #? #??? | | ???????????????????????# #?????## ## ## ##?? | | ???????????????????????# ####### ### | | ???????????????????##### | | ???????????? %[ | | ???????????????############T#####=%[## ## #?? | | ??????????????????????????###?###%= ## ## #?? | | ??????????????????????????????# = "?? | | ??????????????????????????????# "?? | | ??????????????????????????????# "?? | | ??????????????????????????????# "?? | | ??????????????????????????????### ## ## #?? | | ????????????????????????????????# ## ## ### | | ????????????????????????????????# | | ????????????????????????????????# | | ????????????????????????????????# ### | | ????????????????????????????????## ## ## ##?? | | ?????????????????????????????????# ## #? #??? | | ?????????????????????????????????# #######?? #??? | | ?????????????????????????????????# #?????????#??? | | ?????????????????????##??????????# #????????????? | | ????????????????????? ??????????# #????????????? | +----------------------------------------------------+ Best States ------------- Heat Dissipation 31 Energy Generation 12 Energy Capacity 265 Matter Stores 300 Matter Capacity 300 Sight Range 16 Terrain Scan Density 10 Propulsion Shielding 33 Evasion (%) 72 Recoil Reduction 4 Item Schematics ----------------- None Robot Schematics ------------------ None Fabricated ------------ Nothing Alien Tech Used ----------------- None Achievements -------------- Can't Catch Me Cya! Use The Force Challenges ------------ None Game ------ Seed DisruptorDisruptorLoader Manual? 0 Play Time 00:20:28 Cumulative 3.1 hours Start 2024.05.22 @ 20:56:18 End 2024.05.22 @ 21:17:48 Sessions 1 Manual Loads 0 Difficulty Rogue Special Mode None Game No. 8 Rogue 8 Adventurer 0 Explorer 0 Win Type - Total 0 Types 0/0/0/0/0/0/0/0/0 Lore% 2 Gallery% 8 Achievement% 8 Wizard Run 0 Options --------- Layout 0 ASCII 0 Keyboard 0 Movement Arrows Keybinds 0 Fullscreen 1 Font 18/SmallcapsGlow Map View 38x25 Zoom Use 98% Tactical HUD 1 Map Filters NONE Filters NONE Steam 1 RUN: 705954d9-0053-48b4-9f9e-db302214eb25